Workbook

Sheet Volumenberegning (hidden)
B3: Beregningseksempler
C4: Branche-enheder | F4: SI-enhed | L4: Dimensioneringsparametre
B5: Sumpdiameter | C5: 1.45 | D5: mvs | F5: =C5 -> 1.45 | G5: m | L5: Pumpeinstallation | N5: [-] | O5: Dykket | X5: Dykkede pumper
B6: Sumpoverflade | C6: 10 | D6: m2 | F6: 10 | G6: m2 | L6: Pumpekapacitet | N6: [l/s] | O6: 20 | W6: Motorstørrelse | X6: kW | Y6: <4,0 | Z6: 4-7,5 | AA6: 7,5-11 | AB6: 11-30 | AC6: 30-100 | AD6: >100
B7: Startkote pumpe 1 | C7: 11 | D7: m | F7: 11 | G7: m | L7: Geometrisk trykhøjde | N7: [m] | O7: 10 | W7: Højeste tilladte antal starter | X7: z/time | Y7: 30 | Z7: 25 | AA7: 15 | AB7: 10 | AC7: 8 | AD7: 6
B8: Startkote pumpe 2 | C8: 12 | D8: m | F8: 11.5 | G8: m | L8: Trykledningsmateriale | N8: [-] | O8: PE100 | W8: Korteste tid mellem starter [minutter] | X8: T minimum_minut | Y8: 2 | Z8: 2.4 | AA8: 4 | AB8: 6 | AC8: 7.5 | AD8: 10
W9: Korteste tid mellem starter [sekunder] | X9: T minimum_sekund | Y9: =Y8*60 -> 120 | Z9: 144 | AA9: 240 | AB9: 360 | AC9: 450 | AD9: 600
B10: Pumpekapacitet: | C10: 100 | D10: l/s | F10: =C10/1000 -> 0.1 | G10: m3/s | L10: Trykklasse | N10: [SDR] | O10: 17
B11: Trykhøjde: | C11: 20 | D11: mvs | F11: =C11 -> 20 | G11: m | L11: Trykledningslængde | N11: [m] | O11: 2000 | X11: Tørtopstillede pumper
B12: Optaget effekt: | C12: 45 | D12: kW | F12: =C12 -> 45 | G12: kW | L12: Trykledningsdimension | N12: [mm] | O12: 225 | W12: Motorstørrelse | X12: kW | Y12: <4,0 | Z12: 4-7,5 | AA12: 7,5-11 | AB12: 11-30 | AC12: 30-100 | AD12: >100
B13: Antal pumper | C13: 2 | D13: n | F13: 2 | G13: n | L13: Trykledningsruhed | N13: [mm] | O13: 0.3 | W13: Højeste tilladte antal starter | X13: z/time | Y13: 20 | Z13: 15 | AA13: 12 | AB13: 10 | AC13: 8 | AD13: 4
B14: Tilladt antal starter jf. tabel 2 | C14: 10 | D14: z/h | F14: 10 | G14: z/h | W14: Korteste tid mellem starter [minutter] | X14: T minimum_minut | Y14: 3 | Z14: 4 | AA14: 5 | AB14: 6 | AC14: 7.5 | AD14: 15
W15: Korteste tid mellem starter [sekunder] | X15: T minimum_sekund | Y15: =Y14*60 -> 180 | Z15: 240 | AA15: 300 | AB15: 360 | AC15: 450 | AD15: 900
B16: Tminimum jf tabel 2 | C16: 360 | D16: sekunder | F16: 360 | G16: sekunder | L16: Resultater
L17: Beregnet trykledningsmodstand | N17: [m] | O17: 9.92
B18: Solodrift 1 pumpe | L18: Systemmodstand | N18: [m] | O18: 19.92
B19: Metode 1: formel 6 | L19: Effektoptag (P1) | N19: [kW] | O19: 6.3
B20: Mindste sumpvolumen | C20: Vminimum = 0,25 ∙ Qpumpe ∙ Tminimum → | F20: Vminimum = 0,25 ∙ 0,045 ∙ 180 = | I20: =0.25*F10*C16 -> 9 | J20: m3 | L20: Tilladeligt antal starter jf. tabel 2 | N20: [z/h] | O20: 25
B21: Afstand mellem P1start og P1stop | C21: ΔH = Vminimum / Sumpoverflade | F21: ΔH = 2,025 / 1,77 | I21: =I20/$F$6 -> 0.9 | J21: m | L21: Korteste tid mellem starter | N21: [Tmin_sek] | O21: 144
B22: Metode 3: formel 10
B23: Mindste sumpvolumen | C23: Vminimum = Qpumpe ∙ 900 / n ∙ z → | F23: Vminimum = 0,045 ∙ 900 / 1* 20 = | I23: =F10*900/1/F14 -> 9 | J23: m3
B24: Afstand mellem P1start og P1stop | C24: ΔH = Vminimum / Sumpoverflade | F24: ΔH = 2,025 / 1,77 | I24: =I23/$F$6 -> 0.9 | J24: m
B25: Tommelfinger regel 1.1, jf. afsnit 3.5: | C25: 1 minuts driftsvolumen
B26: Mindste sumpvolumen | C26: Vminimum = 60 · Qpumpe Vtotal → | F26: Vminimum = 60 · 0,045 = | I26: =60*F10 -> 6 | J26: m3
B27: Afstand mellem P1start og P1stop | C27: ΔH = Vminimum / Sumpoverflade | F27: ΔH = 2,700 / 1,77 | I27: =I26/$F$6 -> 0.6 | J27: m
B28: Tommelfinger regel 2.1, jf. afsnit 3.5: | C28: 3 minutters driftsvolumen
B29: Mindste sumpvolumen | C29: Vminimum = 3 ·60 · Qpumpe → | F29: Vminimum = 3 ·60 · 0,045 = | I29: =3*60*F10 -> 18 | J29: m3
B30: Afstand mellem P1start og P1stop | C30: ΔH = Vminimum / Sumpoverflade | F30: ΔH = 8,1 / 1,77 | I30: =I29/$F$6 -> 1.8 | J30: m
B32: Paralleldrift 2 pumper
B33: Metode 2: formel 7 og formel 8
B34: Volumen mellem pumpestarter: | C34: ΔV = Aoverflade · (StartkoteP2 - StartkoteP1) → | F34: ΔV= 1,77 ∙ (12-11,5) = | I34: =(F8-F7)*F6 -> 5 | J34: m3
B35: Beregnet akkumuleret volumen | C35: Vtotal = Vminimum / n + ((n-1) ∙ ΔV) → | F35: Vtotal = 2,0 / 2 + ((2-1) ∙ 1,77) | I35: =I23/F13+((F13-1)*I34) -> 9.5 | J35: m3
B36: Beregnet volumen P1start- P1stop | C36: Vminimum P1 = VP1start - VP1stop = Vtotal/n | F36: Vminimum P1 = Vtotal /2 | I36: 0.9480364669 | J36: m3 | W36: =3556/425 -> 8.367058824
B37: Afstand mellem P1start- P1stop | C37: ΔH = VminimumP1 / Sumpoverflade | F37: ΔH =0,948 / 1,77 | I37: =I36/F6 -> 0.09480364669 | J37: m3 | W37: =3217/343 -> 9.379008746
B38: Tommelfinger regel 1.2, jf. afsnit 3.5: | C38: 90 gange Qpumpe, 1,5 minutterss driftsvolumen akkumuleret
B39: Mindste totale sumpvolumen | C39: Vtotal = 90 · Qpumpe → | F39: Vtotal = 90 · 0,045 = | I39: =90*F10 -> 9 | J39: m3
B40: Beregnet volumen P1start- P1stop | C40: Vminimum P1 = Vtotal/n | F40: Vminimum P1 = 4,050/2 | I40: =I39/2 -> 4.5 | J40: m3
B41: Afstand mellem P1start- P1stop | C41: ΔH = VminimumP1 / Sumpoverflade | F41: ΔH =2,025 / 1,77 | I41: =I40/F6 -> 0.45 | J41: m
B43: Solo eller paralleldrift
B44: Metode 3: formel 10 - 2 pumper i paralleldrift
B45: Volumen til hver pumpe | C45: V minimum P1 = Qpumpe ∙ 900 / n ∙ z → | F45: Vminimum = 0,045 ∙ 900 / 2 · 20 = | I45: =F10*900/F13/F14 -> 4.5 | J45: m3
B46: Totalt volumen | C46: Vtotal = VminimumP1 * n → | F46: Vtotal = 1,0 ∙ 2 | I46: =I45*F13 -> 9 | J46: m3
B47: Afstand mellem Pxstart og Pxstop | C47: ΔH = VminimumP1 / Sumpoverflade | F47: ΔH =1,013 / 1,77 | I47: =I45/F6 -> 0.45 | J47: m
B51: Beregningseksempler på case
C52: Branche-enheder | F52: SI-enhed
B53: Sumpdiameter | C53: 2.4 | D53: mvs | F53: =C53 -> 2.4 | G53: m
B54: Sumpoverflade | C54: =PI()*((C53/2)^2) -> 4.523893421 | D54: m2 | F54: =C54 -> 4.523893421 | G54: m2
B55: Startkote pumpe 1 | C55: 11 | D55: m | F55: 11 | G55: m
B56: Startkote pumpe 2 | C56: 12 | D56: m | F56: 12 | G56: m
B57: Pumpekapacitet: | C57: 78 | D57: l/s | F57: =C57/1000 -> 0.078 | G57: m3/s
B58: Trykhøjde: | C58: 25.9 | D58: mvs | F58: =C58 -> 25.9 | G58: m | L58: =281/3.6 -> 78.05555556
B59: Optaget effelt: | C59: 26.4 | D59: kW | F59: =C59 -> 26.4 | G59: kW
B60: Antal pumper | C60: 1 | D60: n | F60: 1 | G60: n
B61: Tilladt antal starter jf. tabel 2 | C61: 15 | D61: z/h | F61: 15 | G61: z/h
B62: Tminimum jf tabel 2 | C62: 240 | D62: sekunder | F62: 240 | G62: sekunder
B64: Solodrift 1 pumpe
B65: Metode 1: formel 6
B66: Mindste sumpvolumen | C66: Vminimum = 0,25 ∙ Qpumpe ∙ Tminimum → | F66: Vminimum = 0,25 ∙ 0,078 ∙ 180 = | I66: =0.25*F57*C62 -> 4.68 | J66: m3
B67: Afstand mellem P1start og P1stop | C67: ΔH = Vminimum / Sumpoverflade | F67: ΔH = 4,68 / 4,52 | I67: =I66/$F$54 -> 1.03450713 | J67: m
B68: Metode 3: formel 10
B69: Mindste sumpvolumen | C69: Vminimum = Qpumpe ∙ 900 / n ∙ z → | F69: Vminimum = 0,078 ∙ 900 / 1* 15 = | I69: =F57*900/1/F61 -> 4.68 | J69: m3
B70: Afstand mellem P1start og P1stop | C70: ΔH = Vminimum / Sumpoverflade | F70: ΔH = 4,68 / 4,52 | I70: =I69/$F$54 -> 1.03450713 | J70: m
B71: Tommelfinger regel 1.1, jf. afsnit 3.5: | C71: 1 minuts driftsvolumen
B72: Mindste sumpvolumen | C72: Vminimum = 60 · Qpumpe Vtotal → | F72: Vminimum = 60 · 0,078 = | I72: =60*F57 -> 4.68 | J72: m3
B73: Afstand mellem P1start og P1stop | C73: ΔH = Vminimum / Sumpoverflade | F73: ΔH = 4,68 / 4,52 | I73: =I72/$F$54 -> 1.03450713 | J73: m
B74: Tommelfinger regel 2.1, jf. afsnit 3.5: | C74: 3 minutters driftsvolumen
B75: Mindste sumpvolumen | C75: Vminimum = 3 ·60 · Qpumpe → | F75: Vminimum = 3 ·60 · 0,078 = | I75: =3*60*F57 -> 14.04 | J75: m3
B76: Afstand mellem P1start og P1stop | C76: ΔH = Vminimum / Sumpoverflade | F76: ΔH = 14,04 / 4,52 | I76: =I75/$F$54 -> 3.10352139 | J76: m
B78: Paralleldrift 2 pumper
B79: Metode 2: formel 7 og formel 8
B80: Volumen mellem pumpestarter: | C80: ΔV = Aoverflade · (StartkoteP2 - StartkoteP1) → | F80: ΔV= 1,77 ∙ (12-11,5) = | I80: =(F56-F55)*F54 -> 4.523893421 | J80: m3
B81: Beregnet akkumuleret volumen | C81: Vtotal = Vminimum / n + ((n-1) ∙ ΔV) → | F81: Vtotal = 2,0 / 2 + ((2-1) ∙ 1,77) | I81: =I69/F60+((F60-1)*I80) -> 4.68 | J81: m3
B82: Beregnet volumen P1start- P1stop | C82: Vminimum P1 = VP1start - VP1stop = Vtotal/n | F82: Vminimum P1 = Vtotal /2 | I82: 0.9480364669 | J82: m3
B83: Afstand mellem P1start- P1stop | C83: ΔH = VminimumP1 / Sumpoverflade | F83: ΔH =0,948 / 1,77 | I83: =I82/F54 -> 0.2095620694 | J83: m3
B84: Tommelfinger regel 1.2, jf. afsnit 3.5: | C84: 90 gange Qpumpe, 1,5 minutterss driftsvolumen akkumuleret
B85: Mindste totale sumpvolumen | C85: Vtotal = 90 · Qpumpe → | F85: Vtotal = 90 · 0,045 = | I85: =90*F57 -> 7.02 | J85: m3
B86: Beregnet volumen P1start- P1stop | C86: Vminimum P1 = Vtotal/n | F86: Vminimum P1 = 4,050/2 | I86: =I85/2 -> 3.51 | J86: m3
B87: Afstand mellem P1start- P1stop | C87: ΔH = VminimumP1 / Sumpoverflade | F87: ΔH =2,025 / 1,77 | I87: =I86/F54 -> 0.7758803476 | J87: m
B89: Solo eller paralleldrift
B90: Metode 3: formel 10 - 2 pumper i paralleldrift
B91: Volumen til hver pumpe | C91: V minimum P1 = Qpumpe ∙ 900 / n ∙ z → | F91: Vminimum = 0,045 ∙ 900 / 2 · 20 = | I91: =F57*900/F60/F61 -> 4.68 | J91: m3
B92: Totalt volumen | C92: Vtotal = VminimumP1 * n → | F92: Vtotal = 1,0 ∙ 2 | I92: =I91*F60 -> 4.68 | J92: m3
B93: Afstand mellem Pxstart og Pxstop | C93: ΔH = VminimumP1 / Sumpoverflade | F93: ΔH =1,013 / 1,77 | I93: =I91/F54 -> 1.03450713 | J93: m
B97: Resultat af designproces
C98: Branche-enheder | F98: SI-enhed
B99: Sumpdiameter | C99: 2.2 | D99: mvs | F99: =C99 -> 2.2 | G99: m
B100: Sumpoverflade | C100: =PI()*((C99/2)^2) -> 3.801327111 | D100: m2 | F100: =C100 -> 3.801327111 | G100: m2
B101: Startkote pumpe 1 | C101: 11 | D101: m | F101: 11 | G101: m
B102: Startkote pumpe 2 | C102: 12 | D102: m | F102: 12 | G102: m
B103: Pumpekapacitet: | C103: =236/3.6 -> 65.55555556 | D103: l/s | F103: =C103/1000 -> 0.06555555556 | G103: m3/s
B104: Trykhøjde: | C104: 25.9 | D104: mvs | F104: =C104 -> 25.9 | G104: m
B105: Optaget effelt: | C105: 26.4 | D105: kW | F105: =C105 -> 26.4 | G105: kW
B106: Antal pumper | C106: 1 | D106: n | F106: 1 | G106: n
B107: Tilladt antal starter jf. tabel 2 | C107: 15 | D107: z/h | F107: 15 | G107: z/h
B108: Tminimum jf tabel 2 | C108: 240 | D108: sekunder | F108: 240 | G108: sekunder
B110: Solodrift 1 pumpe
B111: Metode 1: formel 6
B112: Mindste sumpvolumen | C112: Vminimum = 0,25 ∙ Qpumpe ∙ Tminimum → | F112: Vminimum = 0,25 ∙ 0,066 ∙ 180 = | I112: =0.25*F103*C108 -> 3.933333333 | J112: m3
B113: Afstand mellem P1start og P1stop | C113: ΔH = Vminimum / Sumpoverflade | F113: ΔH = 4,68 / 4,52 | I113: =I112/F100 -> 1.034726352 | J113: m
B114: Metode 3: formel 10
B115: Mindste sumpvolumen | C115: Vminimum = Qpumpe ∙ 900 / n ∙ z → | F115: Vminimum = 0,066 ∙ 900 / 1* 15 = | I115: =F103*900/1/F107 -> 3.933333333 | J115: m3
B116: Afstand mellem P1start og P1stop | C116: ΔH = Vminimum / Sumpoverflade | F116: ΔH = 4,68 / 4,52 | I116: =I115/F100 -> 1.034726352 | J116: m
B117: Tommelfinger regel 1.1, jf. afsnit 3.5: | C117: 1 minuts driftsvolumen
B118: Mindste sumpvolumen | C118: Vminimum = 60 · Qpumpe Vtotal → | F118: Vminimum = 60 · 0,066 = | I118: =60*F103 -> 3.933333333 | J118: m3
B119: Afstand mellem P1start og P1stop | C119: ΔH = Vminimum / Sumpoverflade | F119: ΔH = 4,68 / 4,52 | I119: =I118/F100 -> 1.034726352 | J119: m
B120: Tommelfinger regel 2.1, jf. afsnit 3.5: | C120: 3 minutters driftsvolumen
B121: Mindste sumpvolumen | C121: Vminimum = 3 ·60 · Qpumpe → | F121: Vminimum = 3 ·60 · 0,066 = | I121: =3*60*F103 -> 11.8 | J121: m3
B122: Afstand mellem P1start og P1stop | C122: ΔH = Vminimum / Sumpoverflade | F122: ΔH = 14,04 / 4,52 | I122: =I121/$F$54 -> 2.608372678

Sheet Volumenberegning idé til model (hidden)
C6: Metode 1 | H6: 6
C7: Metode 2 | G7: 8 | H7: 8
C8: Metode 3 | D8: ) (8) | H8: 9
C9: Metode 4 | H9: 12
C10: Metode 5.1 | H10: 13
C11: Metode 5.2 | H11: 14
C12: Metode 5.3 | H12: 15
C13: Metode 6.1 | H13: 16
C14: Metode 6.2 | H14: 17
C18: Beregningseksempler | N18: Driftsform | P18: Beregningsform
D19: Branche-enheder | G19: SI-enhed | N19: Solo | O19: Parallel | P19: Individuel | Q19: Estimat
C20: Sumpdiameter | D20: 1.45 | E20: mvs | G20: =D20 -> 1.45 | H20: m | N20: x | P20: x
C21: Sumpoverflade | D21: 10 | E21: m2 | G21: 10 | H21: m2 | O21: x | P21: x
C22: Startkote pumpe 1 | D22: 11 | E22: m | G22: 11 | H22: m | N22: x | O22: x | P22: x
C23: Startkote pumpe 2 | D23: 12 | E23: m | G23: 11.5 | H23: m | N23: x | P23: x
C24: Pumpekapacitet: | D24: 100 | E24: l/s | G24: =D24/1000 -> 0.1 | H24: m3/s | N24: (x) | Q24: x
C25: Trykhøjde: | D25: 20 | E25: mvs | G25: =D25 -> 20 | H25: m | O25: (x) | Q25: x
C26: Optaget effekt: | D26: 45 | E26: kW | G26: =D26 -> 45 | H26: kW | O26: (x) | Q26: x
C27: Antal pumper | D27: 2 | E27: n | G27: 2 | H27: n | N27: (x) | O27: (x) | Q27: x
C28: Tilladt antal starter jf. tabel 2 | D28: 10 | E28: z/h | G28: 10 | H28: z/h
C29: Tminimum jf tabel 2 | D29: 360 | E29: sekunder | G29: 360 | H29: sekunder
C32: Dimensioneringsparametre | G32: Enheder | K32: Værdi
C33: Kendes maksimalt tilladte antal pumpestarter | F33: Ja | G33: [-] | I33: Tabel | K33: Drop down (Ja-Nej)
C34: Pumpeinstallation | F34: Dykket | G34: [-] | I34: Info | K34: Drop down (Dykket - tørt)
C35: Antal identiske pumper i pumpestationen | F35: 3 | G35: [-] | I35: Tabelopslag | K35: Drop down (1-2-3)
C36: Maksimalt antal pumper i samdrift | F36: 2 | G36: [-] | I36: Tabelopslag | K36: Drop down (1-2-3)
C37: Antallet af pumper i den driftssituation som skal beregnes | F37: 2 | G37: [-] | I37: Tabelopslag | K37: Drop down (1-2-3)
C38: Pumpens/-ernes virkningsgrad i driftspunkt | F38: 0.63 | G38: [%] | I38: Indtastet variabel | K38: Vilkårlig
C39: Pumpekapacitet | F39: 20 | G39: [l/s] | I39: Indtastet variabel | K39: Vilkårlig
C40: Pumpekapacitet 2 pumper i parallel drift | F40: 26.5 | G40: [l/s] | I40: Indtastet variabel | K40: Vilkårlig
C41: Pumpekapacitet 3 pumper i parallel drift | F41: 31.2 | G41: [l/s] | I41: Indtastet variabel | K41: Vilkårlig
C42: Geometrisk trykhøjde | F42: 10 | G42: [m] | I42: Indtastet variabel | K42: Vilkårlig
C43: Trykledningsmateriale | F43: PE100 | G43: [-] | I43: Info | K43: Prædefineret fast
C44: Trykklasse | F44: 17 | G44: [SDR] | I44: Tabel | K44: Drop down
C45: Trykledningsdimension | F45: 225 | G45: [mm] | I45: Tabel | K45: Drop down
C46: Trykledningsruhed | F46: 0.3 | G46: [mm] | I46: Tabel | K46: Drop down (0,1 -0,3-0,6-1,0)mm
C47: Trykledningslængde | F47: 2000 | G47: [m] | I47: Indtastet variabel | K47: Vilkårlig
C48: Sumpdiameter | F48: 1.25 | G48: [m] | I48: Indtastet variabel | K48: Vilkårlig
C49: Startniveau pumpe 1 | F49: 10 | G49: [m] | I49: Indtastet variabel | K49: Vilkårlig
C50: Startniveau pumpe 2 | F50: 10.5 | G50: [m] | I50: Indtastet variabel | K50: Vilkårlig
C53: Resultater fra pumpeudlægning
C54: Antal pumper i samdrift | F54: =celle F37
C55: Beregnet trykledningsmodstand | F55: 9.92 | G55: [m] | I55: Beregning | K55: Colebrook&White
C56: Systemmodstand | F56: =F42+F55 -> 19.92 | G56: [m] | I56: Beregning
C57: Effektoptag (P1) | F57: =(F39*F56/100)/F38 -> 6.323809524 | G57: [kW] | I57: Beregning
C58: Tilladeligt antal starter jf. tabel 2 | F58: 25 | G58: [z/h] | I58: Beregning eller tabelopslag
C59: Korteste tid mellem starter | F59: 144 | G59: [Tmin_sek]
C60: Sumpoverflade | F60: =PI()*(1.25/2)^2 -> 1.22718463 | G60: [m2] | I60: Beregning
C62: Metode 1, behovsspecifik metode, anvendes til pumper i solo drift | I62: Sumpvolumen
I63: =0.25*0.02*144 -> 0.72 | J63: m3
C66: Metode 2, behovsspecifik metode, anvendes til pumper parallel drift | I66: Sumpvolumen
C68: Beregning af volumen mellem pumpestart 1 og pumpestart 2
I69: =F60*(F33-F49) ->  | J69: m3
C71: Metode 2, volumenberegning for 2 pumper i parallel drift:
I72: =I63/2+((2-1)*I69) ->  | J72: m3
C75: Metode 3, behovsspecifik metode, anvendes til pumper i solo og parallel drift | I75: Sumpvolumen
C77: Metode 3, volumenberegning for pumpe i solo drift:
I78: =0.02*900/25 -> 0.72 | J78: m3
C80: Metode 3, volumenberegning for 2 pumper i parallel drift:
I81: =0.0265*900/25 -> 0.954 | J81: m3
C84: Metode 5, faktormetoder, anvendes til pumper i solo og parallel drift: | I84: Sumpvolumen
C86: Metode 5.1, volumenberegning for pumpe i solo drift:
I87: =60*20/1000 -> 1.2 | J87: m3
C89: Metode 5.2, volumenberegning for 2 pumper i parallel drift:
I90: =90*20/1000 -> 1.8 | J90: m3
C92: Metode 5.3, volumenberegning for 3 pumper i parallel drift:
I93: =120*20/1000 -> 2.4 | J93: m2
C95: 3
C96: Metode 6, regelbaseret driftstids-metode, anvendes til pumper i solo og parallel drift
C98: Metode 6.1, 60 sekunders driftstid
I99: =60*20/1000 -> 1.2 | J99: m3
C101: Metode 6.1, 180 sekunders driftstid
I102: =180*20/1000 -> 3.6 | J102: m2
M106: Solodrift | N106: Vol. | P106: Afvig. | R106: Start/stop afstand
R107: Pumpe 1 | S107: Pumpe 2 | T107: Pumpe 3
M108: =C62 -> Metode 1, behovsspecifik metode, anvendes til pumper i solo drift | N108: =I63 -> 0.72 | O108: m3 | P108: 100 | Q108: % | R108: =I63/F60 -> 0.5867087822 | S108: - | T108: -
M109: =C77 -> Metode 3, volumenberegning for pumpe i solo drift: | N109: =I78 -> 0.72 | O109: m3 | P109: 100 | Q109: % | R109: =I78/F60 -> 0.5867087822 | S109: - | T109: -
M110: =C86 -> Metode 5.1, volumenberegning for pumpe i solo drift: | N110: =I87 -> 1.2 | O110: m3 | P110: =N110/N108*100 -> 166.6666667 | Q110: % | R110: =I87/F60 -> 0.9778479704 | S110: - | T110: -
M112: Parallel drift | N112: Vol. | P112: Afvig. | R112: Pumpe 1 | S112: Pumpe 2 | T112: Pumpe 3
M113: =C71 -> Metode 2, volumenberegning for 2 pumper i parallel drift: | N113: =I72 ->  | O113: m3 | P113: 100 | Q113: % | R113: =I63/F60 -> 0.5867087822 | S113: =I72/F60-R113 ->  | T113: -
M114: =C80 -> Metode 3, volumenberegning for 2 pumper i parallel drift: | N114: =I90 -> 1.8 | O114: m3 | P114: =N114/N113*100 ->  | Q114: % | R114: =I78/F60 -> 0.5867087822 | S114: =I81/F60-R114 -> 0.1906803542 | T114: -
M115: =C89 -> Metode 5.2, volumenberegning for 2 pumper i parallel drift: | N115: =I90 -> 1.8 | O115: m3 | P115: =N115/N113*100 ->  | Q115: % | R115: =I87/F60 -> 0.9778479704 | S115: =I90/F60-R115 -> 0.4889239852 | T115: -
M116: =C92 -> Metode 5.3, volumenberegning for 3 pumper i parallel drift: | N116: =I93 -> 2.4 | O116: m3 | P116: =N116/N113*100 ->  | Q116: % | R116: =I87/F60 -> 0.9778479704 | S116: =I90/F60-R116 -> 0.4889239852 | T116: =I93/F60-S116-R116 -> 0.4889239852
M118: Regelbaseret driftstids-metode | N118: Vol. | P118: Afvig. | R118: Pumpe 1 | S118: Pumpe 2 | T118: Pumpe 3
M119: =C98 -> Metode 6.1, 60 sekunders driftstid | N119: =I99 -> 1.2 | O119: m3 | P119: 100 | Q119: % | R119: =I99/F60 -> 0.9778479704 | S119: - | T119: -
M120: =C101 -> Metode 6.1, 180 sekunders driftstid | N120: =I102 -> 3.6 | O120: m3 | P120: 300 | Q120: % | R120: =I102/F60 -> 2.933543911 | S120: - | T120: -

Sheet Eksempel (hidden)
C6: Metode 1 | H6: 6
C7: Metode 2 | G7: 8 | H7: 8
C8: Metode 3 | D8: ) (8) | H8: 9
C9: Metode 4 | H9: 12
C10: Metode 5.1 | H10: 13
C11: Metode 5.2 | H11: 14
C12: Metode 5.3 | H12: 15
C13: Metode 6.1 | H13: 16
C14: Metode 6.2 | H14: 17
C18: Beregningseksempler | N18: Driftsform | P18: Beregningsform
D19: Branche-enheder | G19: SI-enhed | N19: Solo | O19: Parallel | P19: Individuel | Q19: Estimat
C20: Sumpdiameter | D20: 1.45 | E20: mvs | G20: =D20 -> 1.45 | H20: m | N20: x | P20: x
C21: Sumpoverflade | D21: 10 | E21: m2 | G21: 10 | H21: m2 | O21: x | P21: x
C22: Startkote pumpe 1 | D22: 11 | E22: m | G22: 11 | H22: m | N22: x | O22: x | P22: x
C23: Startkote pumpe 2 | D23: 12 | E23: m | G23: 11.5 | H23: m | N23: x | P23: x
C24: Pumpekapacitet: | D24: 100 | E24: l/s | G24: =D24/1000 -> 0.1 | H24: m3/s | N24: (x) | Q24: x
C25: Trykhøjde: | D25: 20 | E25: mvs | G25: =D25 -> 20 | H25: m | O25: (x) | Q25: x
C26: Optaget effekt: | D26: 45 | E26: kW | G26: =D26 -> 45 | H26: kW | O26: (x) | Q26: x
C27: Antal pumper | D27: 2 | E27: n | G27: 2 | H27: n | N27: (x) | O27: (x) | Q27: x
C28: Tilladt antal starter jf. tabel 2 | D28: 10 | E28: z/h | G28: 10 | H28: z/h
C29: Tminimum jf tabel 2 | D29: 360 | E29: sekunder | G29: 360 | H29: sekunder
C32: Dimensioneringsparametre | G32: Enheder
C33: Pumpeinstallation | F33: Dykket | G33: [-]
C34: Pumpekapacitet | F34: 78 | G34: [l/s] | M34: Dimensioneringsparametre | Q34: Enheder
C35: Pumpekapacitet 2 pumper i parallel drift | F35: 26.5 | G35: [l/s] | M35: Pumpeinstallation | P35: Dykket | Q35: [-]
C36: Geometrisk trykhøjde | F36: 10 | G36: [m] | M36: Pumpekapacitet | P36: 66 | Q36: [l/s]
C37: Sumpdiameter | F37: 2.4 | G37: [m] | M37: Pumpekapacitet 2 pumper i parallel drift | P37: 26.5 | Q37: [l/s]
C38: Sumpoverflade | F38: =PI()*(F37/2)^2 -> 4.523893421 | G38: [m2] | M38: Geometrisk trykhøjde | P38: 10 | Q38: [m]
C39: Startniveau pumpe 1 | F39: 11 | G39: [-] | M39: Sumpdiameter | P39: 2.2 | Q39: [m]
C40: Startniveau pumpe 2 | F40: 12 | G40: [-] | M40: Sumpoverflade | P40: =PI()*(P39/2)^2 -> 3.801327111 | Q40: [m2] | V40: =P40/P39 -> 1.727875959
M41: Startniveau pumpe 1 | P41: 11 | Q41: [-]
C42: Resultater fra pumpeudlægning | M42: Startniveau pumpe 2 | P42: 12 | Q42: [-]
C43: Beregnet trykledningsmodstand | F43: 15.9 | G43: [m] | M43: Resultater fra pumpeudlægning
C44: Systemmodstand | F44: =F43+F36 -> 25.9 | G44: [m] | M44: Beregnet trykledningsmodstand | P44: 13.5 | Q44: [m]
C45: Effektoptag (P1) | F45: 26.4 | G45: [kW] | M45: Systemmodstand | P45: =P44+P38 -> 23.5 | Q45: [m]
C46: Tilladeligt antal starter jf. tabel 2 | F46: 10 | G46: [z/h] | M46: Effektoptag (P1) | P46: 22.6 | Q46: [kW]
C47: Korteste tid mellem starter | F47: 360 | G47: [Tmin_sek] | M47: Tilladeligt antal starter jf. tabel 2 | P47: 10 | Q47: [z/h]
M48: Korteste tid mellem starter | P48: 360 | Q48: [Tmin_sek]
C50: Metode 1, anvendes til pumper i solo drift | I50: Sumpvolumen | M50: Metode 1, anvendes til pumper i solo drift | S50: Sumpvolumen
I51: =0.25*F34/1000*360 -> 7.02 | J51: m3 | S51: =0.25*P36/1000*360 -> 5.94 | T51: m3
C53: Metode 3, volumenberegning for pumpe i solo drift: | M53: Metode 3, volumenberegning for pumpe i solo drift:
I54: =F34/1000*900/10 -> 7.02 | J54: m3 | S54: =P36/1000*900/10 -> 5.94 | T54: m3
C57: Metode 5.1, volumenberegning for pumpe i solo drift: | M57: Metode 5.1, volumenberegning for pumpe i solo drift:
I58: =60*F34/1000 -> 4.68 | J58: m3 | S58: =60*P36/1000 -> 3.96 | T58: m3
C61: Metode 6.1, 60 sekunders driftstid | M61: Metode 6.1, 60 sekunders driftstid
I62: =60*F34/1000 -> 4.68 | J62: m3 | S62: =60*P36/1000 -> 3.96 | T62: m3
C64: Metode 6.1, 180 sekunders driftstid | M64: Metode 6.1, 180 sekunders driftstid
I65: =180*F34/1000 -> 14.04 | J65: m2 | S65: =180*P36/1000 -> 11.88 | T65: m2
D69: =F45 -> 26.4 | N69: =N70/N71 -> 20.26848827
D70: =F34*F44/100 -> 20.202 | N70: =P36*P45/100 -> 15.51
D71: =D70/D69 -> 0.7652272727 | N71: =D71 -> 0.7652272727

Sheet Vandmængdematriks (hidden)
F4: Qmaks_time_tørvejr | G4: Qmaks_time_absolut | H4: Qmaks_døgn | I4: Qmiddel_døgn | J4: Qminimum_døgn | K4: Qår
C6: Spildevand
C7: Timespidsbelastning | D7: Qspv-timemaks | E7: [m3/h] | F7: × | G7: ×
C8: Døgnspidsbelastning | D8: Qspv-døgnmaks | E8: [m3/d] | H8: ×
C9: Døgnmiddelbelastning | D9: Qspv-døgnmiddel | E9: [m3/d] | I9: ×
C10: Døgnminimumsbelastning | D10: Qspv-døgnminimum | E10: [m3/d] | J10: ×
C11: Spildevandsårsmængde | D11: Qspv-år | E11: [m3/år] | K11: ×
C13: Uvedkommende vand | P13: 1700 | Q13: 123 | R13: =P13/Q13 -> 13.82113821
C14: Døgnspidsbelastning | D14: Quved-døgnmaks | E14: [m3/d] | F14: × | G14: × | H14: × | P14: 1800 | Q14: 123 | R14: =P14/Q14 -> 14.63414634
C15: Døgnmiddelbelastning | D15: Quved-døgnmiddel | E15: [m3/d] | I15: ×
C16: Døgnminimumsbelastning | D16: Quved-døgnmininimum | E16: [m3/d] | J16: ×
C17: Uvedkommende vand årsmængde | D17: Quved-år | E17: [m3/år] | K17: ×
C19: Nedbør
C20: Direkte nedbørsbelastning | D20: Qdir-ned-timemaks | E20: [m3/h] | G20: × | H20: ×
C21: Indirekte nedbørsbelastning | D21: Qind-ned-døgnmaks | E21: [m3/d] | G21: × | H21: ×
C22: Gennemsnitlig nedbørsbelastning | D22: Qned-gennemsnit | E22: [m3/d] | I22: ×
C23: Nedbør årsmængde | D23: Qned-år | E23: [m3/år] | K23: ×
C25: Industribelastning
C26: Timespidsbelastning | D26: Qindu-timemaks | E26: [m3/h] | F26: × | G26: ×
C27: Døgnspidsbelastning | D27: Qindu-døgnmaks | E27: [m3/d] | H27: ×
C28: Døgnmiddelbelastning | D28: Qindu-døgnmiddel | E28: [m3/d] | I28: ×
C29: Døgnminimumsbelastning | D29: Qindu-døgnmininimum | E29: [m3/d] | J29: ×
C30: Industri årsmængde | D30: Qindu-år | E30: [m3/år] | K30: ×

Sheet Disclaimer

Sheet Simpel volumenberegningsmodel (hidden)
C6: Metode 1 | H6: 6
C7: Metode 2 | G7: 8 | H7: 8
C8: Metode 3 | D8: ) (8) | H8: 9
C9: Metode 4 | H9: 12
C10: Metode 5.1 | H10: 13
C11: Metode 5.2 | H11: 14
C12: Metode 5.3 | H12: 15
C13: Metode 6.1 | H13: 16
C14: Metode 6.2 | H14: 17
C18: Beregningseksempler | N18: Driftsform | P18: Beregningsform
D19: Branche-enheder | G19: SI-enhed | N19: Solo | O19: Parallel | P19: Individuel | Q19: Estimat
C20: Sumpdiameter | D20: 1.45 | E20: mvs | G20: =D20 -> 1.45 | H20: m | N20: x | P20: x
C21: Sumpoverflade | D21: 10 | E21: m2 | G21: 10 | H21: m2 | O21: x | P21: x
C22: Startkote pumpe 1 | D22: 11 | E22: m | G22: 11 | H22: m | N22: x | O22: x | P22: x
C23: Startkote pumpe 2 | D23: 12 | E23: m | G23: 11.5 | H23: m | N23: x | P23: x
C24: Pumpekapacitet: | D24: 100 | E24: l/s | G24: =D24/1000 -> 0.1 | H24: m3/s | N24: (x) | Q24: x
C25: Trykhøjde: | D25: 20 | E25: mvs | G25: =D25 -> 20 | H25: m | O25: (x) | Q25: x
C26: Optaget effekt: | D26: 45 | E26: kW | G26: =D26 -> 45 | H26: kW | O26: (x) | Q26: x
C27: Antal pumper | D27: 2 | E27: n | G27: 2 | H27: n | N27: (x) | O27: (x) | Q27: x
C28: Tilladt antal starter jf. tabel 2 | D28: 10 | E28: z/h | G28: 10 | H28: z/h
C29: Tminimum jf tabel 2 | D29: 360 | E29: sekunder | G29: 360 | H29: sekunder
C32: Dimensioneringsparametre | G32: Enheder | K32: Værdi
C33: Pumpeinstallation | F33: Dykket | G33: [-] | I33: Info | K33: Drop down (Dykket - tørt)
C34: Maksimalt tilladte antal starter pr. pumpe | F34: 10 | G34: [z/h] | I34: Indtastet variabel | K34: Vilkårlig
C35: Antal identiske pumper i pumpestationen som alternerer | F35: 3 | G35: [-] | I35: Tabelopslag | K35: Drop down (1-2-3)
C36: Maksimalt antal pumper i samdrift | F36: 2 | G36: [-] | I36: Tabelopslag | K36: Drop down (1-2-3)
C37: Antallet af pumper i den driftssituation som ønskes beregnet | F37: 2 | G37: [-] | I37: Tabelopslag | K37: Drop down (1-2-3)
C38: Pumpens/-ernes virkningsgrad i driftspunkt | F38: 0.63 | G38: [%] | I38: Indtastet variabel | K38: Vilkårlig
C39: Pumpekapacitet solodrift | F39: 20 | G39: [l/s] | I39: Indtastet variabel | K39: Vilkårlig
C40: Pumpekapacitet 2 pumper i parallel drift | F40: 26.5 | G40: [l/s] | I40: Indtastet variabel | K40: Vilkårlig
C41: Pumpekapacitet 3 pumper i parallel drift | F41: 31.2 | G41: [l/s] | I41: Indtastet variabel | K41: Vilkårlig
C42: Sumpdiameter | F42: 1.25 | G42: [m] | I42: Indtastet variabel | K42: Vilkårlig
C43: Startniveau pumpe 1 | F43: 10 | G43: [m] | I43: Indtastet variabel | K43: Vilkårlig
C44: Startniveau pumpe 2 | F44: 10.5 | G44: [m] | I44: Indtastet variabel | K44: Vilkårlig
C46: Resultater fra pumpeudlægning
C47: Antal pumper i samdrift | F47: =celle F37 | G47: [-] | I47: Resultater
C48: Anvendt akkumuleret pumpekapacitet | F48: =F39;F40;F41 | G48: [l/s] | I48: Resultater
C49: Tilladeligt antal starter pr. pumpe | F49: =celle F34 | G49: [z/h] | I49: Resultater
C50: Korteste tid mellem starter | F50: =3600/(F34*F37) -> 180 | G50: [Tmin_sek] | I50: Resultater
C51: Sumpoverflade | F51: =PI()*(1.25/2)^2 -> 1.22718463 | G51: [m2] | I51: Resultater
C53: Metode 1, behovsspecifik metode, anvendes til pumper i solo drift | I53: Sumpvolumen
I54: =0.25*0.02*144 -> 0.72 | J54: m3
C57: Metode 2, behovsspecifik metode, anvendes til pumper parallel drift | I57: Sumpvolumen
C59: Beregning af volumen mellem pumpestart 1 og pumpestart 2
I60: =F51*(#REF!-F43) ->  | J60: m3
C62: Metode 2, volumenberegning for 2 pumper i parallel drift:
I63: =I54/2+((2-1)*I60) ->  | J63: m3
C66: Metode 3, behovsspecifik metode, anvendes til pumper i solo og parallel drift | I66: Sumpvolumen
C68: Metode 3, volumenberegning for pumpe i solo drift:
I69: =0.02*900/25 -> 0.72 | J69: m3
C71: Metode 3, volumenberegning for 2 pumper i parallel drift:
I72: =0.0265*900/25 -> 0.954 | J72: m3
C75: Metode 5, faktormetoder, anvendes til pumper i solo og parallel drift: | I75: Sumpvolumen
C77: Metode 5.1, volumenberegning for pumpe i solo drift:
I78: =60*20/1000 -> 1.2 | J78: m3
C80: Metode 5.2, volumenberegning for 2 pumper i parallel drift:
I81: =90*20/1000 -> 1.8 | J81: m3
C83: Metode 5.3, volumenberegning for 3 pumper i parallel drift:
I84: =120*20/1000 -> 2.4 | J84: m2
C86: 3
C87: Metode 6, regelbaseret driftstids-metode, anvendes til pumper i solo og parallel drift
C89: Metode 6.1, 60 sekunders driftstid
I90: =60*20/1000 -> 1.2 | J90: m3
C92: Metode 6.1, 180 sekunders driftstid
I93: =180*20/1000 -> 3.6 | J93: m2
M97: Solodrift | N97: Vol. | P97: Afvig. | R97: Start/stop afstand
R98: Pumpe 1 | S98: Pumpe 2 | T98: Pumpe 3
M99: =C53 -> Metode 1, behovsspecifik metode, anvendes til pumper i solo drift | N99: =I54 -> 0.72 | O99: m3 | P99: 100 | Q99: % | R99: =I54/F51 -> 0.5867087822 | S99: - | T99: -
M100: =C68 -> Metode 3, volumenberegning for pumpe i solo drift: | N100: =I69 -> 0.72 | O100: m3 | P100: 100 | Q100: % | R100: =I69/F51 -> 0.5867087822 | S100: - | T100: -
M101: =C77 -> Metode 5.1, volumenberegning for pumpe i solo drift: | N101: =I78 -> 1.2 | O101: m3 | P101: =N101/N99*100 -> 166.6666667 | Q101: % | R101: =I78/F51 -> 0.9778479704 | S101: - | T101: -
M103: Parallel drift | N103: Vol. | P103: Afvig. | R103: Pumpe 1 | S103: Pumpe 2 | T103: Pumpe 3
M104: =C62 -> Metode 2, volumenberegning for 2 pumper i parallel drift: | N104: =I63 ->  | O104: m3 | P104: 100 | Q104: % | R104: =I54/F51 -> 0.5867087822 | S104: =I63/F51-R104 ->  | T104: -
M105: =C71 -> Metode 3, volumenberegning for 2 pumper i parallel drift: | N105: =I81 -> 1.8 | O105: m3 | P105: =N105/N104*100 ->  | Q105: % | R105: =I69/F51 -> 0.5867087822 | S105: =I72/F51-R105 -> 0.1906803542 | T105: -
M106: =C80 -> Metode 5.2, volumenberegning for 2 pumper i parallel drift: | N106: =I81 -> 1.8 | O106: m3 | P106: =N106/N104*100 ->  | Q106: % | R106: =I78/F51 -> 0.9778479704 | S106: =I81/F51-R106 -> 0.4889239852 | T106: -
M107: =C83 -> Metode 5.3, volumenberegning for 3 pumper i parallel drift: | N107: =I84 -> 2.4 | O107: m3 | P107: =N107/N104*100 ->  | Q107: % | R107: =I78/F51 -> 0.9778479704 | S107: =I81/F51-R107 -> 0.4889239852 | T107: =I84/F51-S107-R107 -> 0.4889239852
M109: Regelbaseret driftstids-metode | N109: Vol. | P109: Afvig. | R109: Pumpe 1 | S109: Pumpe 2 | T109: Pumpe 3
M110: =C89 -> Metode 6.1, 60 sekunders driftstid | N110: =I90 -> 1.2 | O110: m3 | P110: 100 | Q110: % | R110: =I90/F51 -> 0.9778479704 | S110: - | T110: -
M111: =C92 -> Metode 6.1, 180 sekunders driftstid | N111: =I93 -> 3.6 | O111: m3 | P111: 300 | Q111: % | R111: =I93/F51 -> 2.933543911 | S111: - | T111: -

Sheet Tidl udkast (hidden)
B2: Dimensioneringsparametre | D2: Enheder | H2: Værdi
B3: Pumpeinstallation | C3: Dykket | D3: [-] | F3: Info | H3: Drop down (Dykket - tørt)
B4: Maksimalt tilladte antal starter pr. pumpe | C4: 10 | D4: [z/h] | F4: Indtastet variabel | H4: Vilkårlig
B5: Antal identiske pumper i pumpestationen som alternerer | C5: 3 | D5: [-] | F5: Tabelopslag | H5: Drop down (1-2-3) | L5: Fra v0.x
B6: Maksimalt antal pumper i samdrift | C6: 2 | D6: [-] | F6: Tabelopslag | H6: Drop down (1-2-3)
B7: Antallet af pumper i den driftssituation som ønskes beregnet | C7: 2 | D7: [-] | F7: Tabelopslag | H7: Drop down (1-2-3)
B8: Pumpens/-ernes virkningsgrad i driftspunkt | C8: 0.63 | D8: [%] | F8: Indtastet variabel | H8: Vilkårlig
B9: Pumpekapacitet solodrift | C9: 20 | D9: [l/s] | F9: Indtastet variabel | H9: Vilkårlig
B10: Pumpekapacitet 2 pumper i parallel drift | C10: 26.5 | D10: [l/s] | F10: Indtastet variabel | H10: Vilkårlig
B11: Pumpekapacitet 3 pumper i parallel drift | C11: 31.2 | D11: [l/s] | F11: Indtastet variabel | H11: Vilkårlig
B12: Sumpdiameter | C12: 1.25 | D12: [m] | F12: Indtastet variabel | H12: Vilkårlig
B13: Startniveau pumpe 1 | C13: 10 | D13: [m] | F13: Indtastet variabel | H13: Vilkårlig
B14: Startniveau pumpe 2 | C14: 10.5 | D14: [m] | F14: Indtastet variabel | H14: Vilkårlig
B16: Resultater fra pumpeudlægning
B17: Antal pumper i samdrift | C17: =C7 -> 2 | D17: [-] | F17: Resultater
B18: Anvendt akkumuleret pumpekapacitet | C18: =IF(C6=1,C9,IF(C6=2,C10,C11)) -> 26.5 | D18: [l/s] | F18: Resultater | H18: C9-11 afh. Af C6
B19: Tilladeligt antal starter pr. pumpe | C19: =C4 -> 10 | D19: [z/h] | F19: Resultater
B20: Korteste tid mellem starter | C20: =3600/(C4*C7) -> 180 | D20: [Tmin_sek] | F20: Resultater
B21: Sumpoverflade | C21: =PI()*(1.25/2)^2 -> 1.22718463 | D21: [m2] | F21: Resultater

Sheet Find sumpvolumen - simpel
B2: Dimensioneringsparametre til sumpdimensionering
B3: Trykledningsdimension | C3: 160 | D3: [mm]
B4: Trykklasse | C4: 17 | D4: [SDR]
B5: Pumpeinstallation | C5: Dykket | D5: [-]
B6: Maksimalt tilladte antal starter pr. pumpe | C6: 10 | D6: [z/h]
B7: Antal identiske pumper som alternerer | C7: 1 | D7: [-]
B8: Maksimalt antal pumper i samdrift | C8: 3 | D8: [-]
B9: Antallet af pumper i den driftssituation som ønskes beregnet | C9: 3 | D9: [-]
B10: Pumpens/-ernes virkningsgrad i driftspunkt | C10: 65 | D10: [%]
B11: Pumpekapacitet solodrift | C11: 16 | D11: [l/s] | F11: farveforskel på inddata felter
B12: Pumpekapacitet 2 pumper i parallel drift | C12: 24 | D12: [l/s] | F12: række 9 fjernes?
B13: Pumpekapacitet 3 pumper i parallel drift | C13: 28 | D13: [l/s]
B14: Sumpdiameter | C14: 1.25 | D14: [m]
B15: Startniveau pumpe 1 | C15: 10 | D15: [m]
A16: x | B16: Startniveau pumpe 2 | C16: 10.5 | D16: [m]
B18: Resultater fra pumpeudlægning
B19: Antal pumper i samdrift | C19: 2 | D19: [-]
B20: Anvendt akkumuleret pumpekapacitet | C20: 28 | D20: [l/s]
B21: Tilladeligt antal starter pr. pumpe | C21: 10 | D21: [z/h]
B22: Korteste tid mellem starter | C22: 120 | D22: [s]
B23: Sumpoverflade | C23: 1.22718463 | D23: [m2]
B25: Resultater
B26: Nødvendigt sumpvolumen, Metode 3. Solo-/paralleldrift. | C26: 0.84 | D26: [m3]
B27: Nødvendigt sumpvolumen, Metode 6.1. Solo-/paralleldrift, estimat. | C27: 0.96 | D27: [m3]
B28: Nødvendigt sumpvolumen, Metode 6.2. Solo-/paralleldrift, estimat. | C28: 2.88 | D28: [m3]
B29: Nødvendigt sumpvolumen, Metode 2. Paralleldrift. | C29: 1.70718463 | D29: [m3]
B30: Nødvendigt sumpvolumen, Metode 5.2. Paralleldrift, estimat. | C30: 1.44 | D30: [m3]
B31: Nødvendigt sumpvolumen, Metode 5.3. Paralleldrift, estimat. | C31: 1.92 | D31: [m3]

Sheet Find sumpvolumen - avanceret (hidden)
B2: Dimensioneringsparametre til sumpdimensionering
B3: Trykledningsdimension | C3: 225 | D3: [mm]
B4: Trykledningslængde | C4: 2000 | D4: [m]
B5: Trykklasse | C5: 17 | D5: [SDR]
B6: Pumpeinstallation | C6: Dykket | D6: [-]
B7: Motorstørrelse på pumpe | C7: 10 | D7: [kW]
B8: Antal identiske pumper som alternerer | C8: 2 | D8: [-]
B9: Maksimalt antal pumper i samdrift | C9: 2 | D9: [-]
B10: Antallet af pumper i den driftssituation som ønskes beregnet | C10: 2 | D10: [-]
B11: Pumpens/-ernes virkningsgrad i driftspunkt | C11: 63 | D11: [%]
B12: Pumpekapacitet solodrift | C12: 20 | D12: [l/s]
B13: Pumpekapacitet 2 pumper i parallel drift | C13: 26.5 | D13: [l/s]
B14: Pumpekapacitet 3 pumper i parallel drift | C14: 31.2 | D14: [l/s]
B15: Sumpdiameter | C15: 1.25 | D15: [m]
A16: x | B16: Startniveau pumpe 1 | C16: 10 | D16: [m]
B17: Startniveau pumpe 2 | C17: 10.5 | D17: [m]
B19: Resultater fra pumpeudlægning
B20: Antal pumper i samdrift | C20: 2 | D20: [-]
B21: Anvendt akkumuleret pumpekapacitet | C21: 26.5 | D21: [l/s]
B22: Tilladeligt antal starter pr. pumpe | C22: 15 | D22: [z/h]
B24: Resultater fra pumpeudlægning
B25: Antal pumper i samdrift | C25: 2 | D25: [-]
B26: Anvendt akkumuleret pumpekapacitet | C26: 26.5 | D26: [l/s]
B27: Tilladeligt antal starter pr. pumpe | C27: 15 | D27: [z/h]
B28: Korteste tid mellem starter | C28: 180 | D28: [s]
B29: Sumpoverflade | C29: 1.22718463 | D29: [m2]
B31: Resultater, sumpvolumen
B33: Resultater, ledningstab m.m.
B34: Valgt ledningsruhed | C34: 0.03 | D34: [mm]
B35: Indtastet geometrisk tab | D35: [m]
B36: Beregnet strømningshastighed | C36: 0.8560640925 | D36: [m/s]
B37: Rørtab /1000m | C37: 3.109022276 | D37: [mvs]
B38: Rørtab for ledningen (2000 m) | C38: 6.218044552 | D38: [m]
B39: Systemtab | C39: Kan ikke beregnes | D39: [m]

Sheet Tabeller (hidden)
A1: Pumpe | B1: Antal pumper | C1: Trykledn.dim. | D1: Trykklasse | H1: Dykkede | I1: Dykkede | L1: Tørtopstillede | M1: Tørtopstillede | O1: Trykledningsruhed | R1: C&W Parametre
A2: Dykket | B2: 1 | C2: 90 | D2: 11 | F2: Motorstr min | G2: Motorstr max | H2: Max. Starter [z/h] | I2: Min. t ml. starter [min] | J2: Motorstr min | K2: Motorstr max | L2: Max. Starter [z/h] | M2: Min. t ml. starter [min] | O2: 0.1 | R2: Trykledningsruhed | S2: =(0.01+0.6)/2/1000 -> 0.000305 | T2: [m] | U2: Tab B.3 i Brorson, ruhed i PVC/PE rør i intervallet 0.01 - 0.6 mm
A3: Tørt | B3: 2 | C3: 110 | D3: 17 | F3: 0 | G3: 4 | H3: 30 | I3: 2 | J3: 0 | K3: 4 | L3: 20 | M3: 3 | O3: 0.3 | R3: Hastighed | S3: =('Find sumpvolumen - simpel'!C20/1000)/(PI()*('Find sumpvolumen - simpel'!C24/1000/2)^2) ->  | T3: [m/s]
B4: 3 | C4: 125 | D4: 26 | F4: =G3 -> 4 | G4: 7.5 | H4: 25 | I4: 2.4 | J4: =K3 -> 4 | K4: 7.5 | L4: 15 | M4: 4 | O4: 0.6 | R4: Reynolds tal | S4: =S3*(0.5*'Find sumpvolumen - simpel'!C24/1000)/(1.3*10^(-6)) ->  | T4: [-]
C5: 140 | F5: =G4 -> 7.5 | G5: 11 | H5: 15 | I5: 4 | J5: =K4 -> 7.5 | K5: 11 | L5: 12 | M5: 5 | O5: 1 | R5: Friktionsfaktor, f | S5: =2/(6,4-2,45*LN(I2/('CDV (2)'!C24*3,7)+4,7/(I4*SQRT(I5+1^(-300)))))^2
C6: 160 | F6: 11 | G6: 30 | H6: 10 | I6: 6 | J6: 11 | K6: 30 | L6: 10 | M6: 6 | O6: 3
C7: 180 | F7: 30 | G7: 100 | H7: 8 | I7: 7.5 | J7: 30 | K7: 100 | L7: 8 | M7: 7.5 | O7: 6
C8: 200 | F8: 100 | H8: 6 | I8: 10 | J8: 100 | L8: 4 | M8: 15
C9: 225
C10: 250
C11: 280
C12: 315
C13: 355
C14: 400
C15: 450
C16: 500
C17: 560
C18: 630
C19: 710
C20: 800
